bitfinex/quotes_BTCUSD_20220103
["timestamp","ask_amount","ask_price","bid_price","bid_amount"]
[1641241879089,0.046,45887.0,45877.0,0.60110525]
[1641241879290,0.054488,45892.0,45877.0,0.54661725]
[1641241879291,0.05095466,45878.0,45877.0,0.54661725]
[1641241879694,0.03095466,45878.0,45877.0,0.54661725]
[1641241879889,0.054482,45895.0,45877.0,0.60234246]
[1641241880090,0.08992,45896.0,45888.0,0.08665775]
[1641241880693,0.08992,45896.0,45888.0,0.38696309]
[1641241880935,0.08992,45896.0,45888.0,0.08665775]
[1641241881930,0.08992,45896.0,45889.0,0.24061063]
[1641241882530,0.08992,45896.0,45889.0,0.24914363]
[1641241883132,0.08992,45896.0,45894.0,0.32288]
[1641241883333,0.08992,45896.0,45895.0,0.07464832]
[1641241883535,0.08992,45896.0,45895.0,0.13596832]
[1641241883734,0.08992,45896.0,45895.0,0.22741294]
[1641241883933,0.08992,45896.0,45895.0,0.17741294]
[1641241884335,0.54648698,45900.0,45899.0,0.31800792]
[1641241884540,0.54648698,45900.0,45899.0,0.31921759]
[1641241885471,0.40553798,45902.0,45899.0,0.00120967]
[1641241885871,0.54638698,45905.0,45899.0,0.05566667]
[1641241886074,0.54638698,45905.0,45901.0,0.00126051]
[1641241886272,0.54638698,45905.0,45902.0,0.0908113]
[1641241886474,0.54638698,45905.0,45903.0,0.27969709]
[1641241886672,0.54638698,45905.0,45904.0,0.29503543]
[1641241886877,0.54638698,45905.0,45904.0,1.56623596]
[1641241887075,0.001,45909.0,45908.0,0.00127379]
[1641241887476,0.0008,45914.0,45913.0,0.00128851]
[1641241887673,0.0001,45920.0,45913.0,0.00128851]
[1641241888075,0.0001,45920.0,45917.0,0.108868]
[1641241888275,0.0001,45920.0,45918.0,0.0012382]
[1641241888526,0.001,45929.0,45919.0,0.4]
[1641241888727,0.001,45929.0,45928.0,0.00128406]
[1641241888927,0.001,45929.0,45928.0,0.51982241]
[1641241889131,0.27705606,45934.0,45928.0,0.10973]
[1641241889329,0.27705606,45934.0,45928.0,0.08139]
[1641241889330,1.45136079,45929.0,45928.0,0.08139]
[1641241889528,1.45136079,45929.0,45917.0,0.163272]
[1641241889725,0.00120198,45927.0,45917.0,0.163272]
[1641241890130,0.23566274,45923.0,45919.0,0.09391594]
[1641241890529,0.27136079,45929.0,45919.0,0.09391594]
[1641241890727,0.27136079,45929.0,45918.0,0.28412889]
[1641241890929,0.108877,45927.0,45919.0,0.054437]
[1641241891129,0.054438,45927.0,45919.0,0.054437]
[1641241891330,0.054438,45927.0,45918.0,0.28412889]
[1641241891729,0.108874,45932.0,45918.0,0.37099258]
[1641241891926,0.001,45939.0,45918.0,0.37099258]
[1641241891927,0.00494997,45923.0,45922.0,0.054433]
[1641241892182,0.23721427,45931.0,45922.0,0.31011143]
[1641241892381,0.23721427,45931.0,45920.0,0.00128856]
[1641241892685,0.53260271,45931.0,45920.0,0.00128856]
[1641241892881,0.53260271,45931.0,45918.0,0.28412889]
[1641241893082,0.10888194,45926.0,45918.0,0.28412889]
[1641241893284,0.217768,45929.0,45914.0,0.61929676]
[1641241893488,0.217768,45929.0,45914.0,0.24143424]
[1641241893685,0.108884,45929.0,45913.0,0.74141683]
[1641241893987,0.18809077,45928.0,45913.0,0.74141683]
[1641241894185,0.18809077,45928.0,45913.0,0.7402069]
[1641241894186,0.054451,45919.0,45913.0,0.7402069]
[1641241894485,0.35574426,45923.0,45911.0,0.99342884]
[1641241894486,0.34149994,45923.0,45911.0,0.99342884]
[1641241894684,0.0402,45923.0,45911.0,0.99342884]
[1641241894884,0.0402,45923.0,45917.0,0.09882406]
[1641241895084,0.0402,45923.0,45911.0,0.25322194]
[1641241895387,0.05445,45916.0,45911.0,0.25322194]
[1641241895585,0.10889633,45924.0,45911.0,0.25322194]
[1641241895785,0.29009682,45922.0,45920.0,0.26453719]
[1641241896025,0.39697602,45928.0,45920.0,0.26453719]
[1641241896328,0.11015687,45928.0,45918.0,0.07774337]
[1641241896523,0.11015687,45928.0,45913.0,0.29749603]
[1641241896725,0.054443,45922.0,45913.0,0.29749603]
[1641241897025,0.10888772,45922.0,45921.0,8.832e-05]
[1641241897224,0.05888772,45922.0,45921.0,8.832e-05]
[1641241897925,0.3812957,45922.0,45921.0,8.832e-05]
[1641241898124,0.04083769,45922.0,45921.0,8.832e-05]
[1641241898329,0.00494997,45922.0,45921.0,8.832e-05]
[1641241899129,0.00494997,45922.0,45921.0,0.24479887]
[1641241902878,0.00494997,45922.0,45921.0,0.25243425]
[1641241903532,0.00494997,45922.0,45921.0,0.24479887]
[1641241904733,0.00494997,45922.0,45921.0,0.24364487]
[1641241905133,0.05,45923.0,45921.0,0.24364487]
[1641241905333,0.04994997,45923.0,45922.0,0.13634972]
[1641241905736,0.28656377,45933.0,45932.0,0.09419249]
[1641241905933,0.054432,45934.0,45932.0,0.41884445]
[1641241906133,0.00126458,45935.0,45932.0,0.41884445]
[1641241906532,0.054428,45936.0,45932.0,0.41884445]
[1641241907188,0.001,45939.0,45932.0,0.52326745]
[1641241907391,0.001,45939.0,45933.0,0.05591642]
[1641241907589,0.001,45939.0,45933.0,0.05598808]
[1641241907793,0.001,45939.0,45933.0,7.166e-05]
[1641241907990,0.001,45939.0,45937.0,0.24597674]
[1641241909091,0.05051599,45947.0,45941.0,0.39327867]
[1641241909290,0.25109231,45949.0,45935.0,0.108827]
[1641241909492,0.05441902,45945.0,45935.0,0.108827]
[1641241909691,0.05441902,45945.0,45935.0,0.158827]
[1641241909891,0.05441902,45945.0,45935.0,0.05]
[1641241910091,0.05341902,45945.0,45935.0,0.05]
[1641241910290,0.05341902,45945.0,45941.0,0.38552251]
[1641241910493,0.141,45949.0,45941.0,0.53993551]
[1641241911331,0.141,45949.0,45948.0,0.08728947]
[1641241911931,0.141,45949.0,45948.0,0.08228947]
[1641241912133,0.141,45949.0,45946.0,0.31251376]
[1641241912337,0.141,45949.0,45944.0,0.00815399]
[1641241912635,0.26412083,45948.0,45944.0,0.00815399]
[1641241912833,0.26412083,45948.0,45941.0,0.1]
[1641241912834,1.62,45947.0,45941.0,0.00815399]
[1641241913036,0.0402,45946.0,45941.0,0.00815399]
[1641241913239,0.00126797,45943.0,45941.0,0.00815399]
[1641241913439,0.32427161,45942.0,45941.0,0.00815399]
[1641241913635,0.00126797,45943.0,45941.0,0.00815399]
[1641241913835,0.16328045,45945.0,45941.0,0.00815399]
[1641241914037,0.141,45949.0,45941.0,0.00815399]
[1641241914240,0.054415,45947.0,45941.0,0.00815399]
[1641241914436,0.141,45949.0,45941.0,0.00815399]
[1641241914437,0.054418,45945.0,45941.0,0.00815399]
[1641241916080,0.054418,45945.0,45941.0,0.06256899]
[1641241916278,0.02684691,45946.0,45941.0,0.06256899]
[1641241917282,0.054418,45945.0,45941.0,0.06256899]
[1641241918082,0.19541392,45949.0,45941.0,0.06256899]
[1641241918284,0.19541392,45949.0,45942.0,9.749e-05]
[1641241918541,0.10883508,45946.0,45942.0,9.749e-05]
[1641241918741,0.141,45949.0,45942.0,9.749e-05]
[1641241919340,0.141,45949.0,45942.0,0.07216376]
[1641241919545,0.108833,45946.0,45942.0,9.749e-05]
[1641241919741,0.26830099,45944.0,45942.0,9.749e-05]
[1641241920541,0.42725985,45945.0,45942.0,9.749e-05]
[1641241920744,0.16326657,45944.0,45942.0,9.749e-05]
[1641241922043,0.054417,45944.0,45942.0,9.749e-05]
[1641241922480,0.2590417,45943.0,45942.0,9.749e-05]
[1641241923581,0.2490417,45943.0,45942.0,9.749e-05]
[1641241923781,0.16326977,45944.0,45942.0,9.749e-05]
[1641241925083,0.054417,45944.0,45942.0,9.749e-05]
[1641241925685,0.249822,45949.0,45947.0,0.00126686]
[1641241926332,0.249822,45949.0,45942.0,0.00137104]
[1641241926533,0.51342199,45949.0,45942.0,0.00137104]
[1641241926931,0.249822,45949.0,45942.0,0.00137104]
[1641241927430,0.249822,45949.0,45946.0,0.05441]
[1641241927431,0.141,45949.0,45946.0,0.05441]
[1641241928131,0.14064532,45949.0,45946.0,0.05441]
[1641241928731,0.14064532,45949.0,45948.0,0.08843524]
[1641241928933,0.14064532,45949.0,45948.0,0.14284324]
[1641241929135,0.13865175,45949.0,45948.0,0.14284324]
[1641241930581,0.13865175,45949.0,45948.0,0.054408]
[1641241930781,0.38977919,45949.0,45947.0,9.362e-05]
[1641241930981,0.13865175,45949.0,45947.0,9.362e-05]
[1641241931781,2.60882466,45949.0,45947.0,9.362e-05]
[1641241932380,2.554411,45949.0,45947.0,9.362e-05]
[1641241932981,2.554411,45949.0,45948.0,0.08595971]
[1641241932982,2.5,45949.0,45948.0,0.08595971]
[1641241933434,2.5,45949.0,45947.0,0.05450362]
[1641241935334,2.5,45949.0,45948.0,0.08456351]
[1641241935531,2.5,45949.0,45947.0,0.05450362]
[1641241935730,2.5,45949.0,45947.0,9.362e-05]
[1641241936230,2.86327937,45949.0,45947.0,9.362e-05]
[1641241936430,2.55421516,45949.0,45947.0,9.362e-05]
[1641241936834,2.5,45949.0,45947.0,0.05450362]
[1641241937474,2.5,45949.0,45948.0,0.24236445]
[1641241937676,2.5,45949.0,45947.0,0.05450362]
[1641241937877,2.55441,45949.0,45947.0,9.362e-05]
[1641241938576,2.5,45949.0,45947.0,9.362e-05]
[1641241939180,2.5,45949.0,45947.0,0.05450462]
[1641241939578,2.5,45949.0,45948.0,0.27612136]
[1641241939976,2.5,45949.0,45948.0,0.38492636]
[1641241940179,2.5,45949.0,45948.0,0.27612136]
[1641241940680,2.5,45949.0,45947.0,9.362e-05]
[1641241941628,2.5,45949.0,45939.0,0.00815401]
[1641241941629,0.008533,45941.0,45939.0,0.00815401]
[1641241942227,0.06295498,45941.0,45929.0,0.07038648]
[1641241942629,0.06295498,45941.0,45929.0,0.05038648]
[1641241942630,0.27127189,45940.0,45929.0,0.05038648]
[1641241942829,1.90146394,45939.0,45925.0,0.33967913]
[1641241943029,0.0012256,45931.0,45925.0,0.33967913]
[1641241943228,0.0012256,45931.0,45920.0,0.0054]
[1641241943229,0.0402,45930.0,45924.0,0.33099703]
[1641241943827,0.1088838,45928.0,45924.0,0.33099703]
[1641241944026,0.054449,45926.0,45924.0,0.33099703]
[1641241944228,0.05445,45926.0,45925.0,0.01577116]
[1641241944429,0.10889789,45927.0,45925.0,0.01577116]
[1641241944679,0.10889789,45927.0,45925.0,0.01017116]
[1641241944680,1.6602,45926.0,45925.0,0.01017116]
[1641241944880,1.6602,45926.0,45920.0,0.0054]
[1641241944881,0.00128245,45921.0,45920.0,0.0054]
[1641241945081,0.31327495,45921.0,45920.0,0.0054]
[1641241945277,1.10327495,45921.0,45920.0,0.0054]
[1641241945580,0.69761289,45921.0,45920.0,0.0054]
[1641241946379,0.69732253,45921.0,45920.0,0.0054]
[1641241946979,1.13855999,45921.0,45920.0,0.0054]
[1641241947378,0.84757127,45921.0,45920.0,0.0054]
[1641241947780,0.00120577,45917.0,45901.0,0.001]
[1641241947980,0.3050217,45906.0,45902.0,0.26725343]
[1641241948534,0.3050217,45906.0,45901.0,0.001]
[1641241948833,0.054464,45905.0,45901.0,0.001]
[1641241949233,0.00128872,45903.0,45901.0,0.00067]
[1641241949433,0.00128872,45903.0,45900.0,0.00012]
[1641241949434,0.45,45901.0,45900.0,0.00012]
[1641241949632,0.45,45901.0,45898.0,0.00022]
[1641241949633,1.62,45900.0,45898.0,0.00022]
[1641241949839,1.62,45900.0,45893.0,0.00022]
[1641241949840,1.6602,45899.0,45893.0,0.00022]
[1641241950034,0.00124471,45897.0,45893.0,0.00022]
[1641241950232,0.00126709,45894.0,45893.0,0.00011]
[1641241950435,1.33,45893.0,45880.0,1.11130651]
[1641241950634,0.24268036,45891.0,45880.0,0.00044]
[1641241950834,0.0545,45889.0,45884.0,0.29686173]
[1641241951033,0.0402,45888.0,45884.0,0.00044]
[1641241951637,0.03965491,45888.0,45884.0,0.00044]
[1641241952278,0.03965491,45888.0,45884.0,0.07645374]
[1641241952486,0.00126709,45894.0,45884.0,0.07645374]
[1641241952681,0.05448,45892.0,45884.0,0.07645374]
[1641241952880,0.00126709,45894.0,45884.0,0.07645374]
[1641241953179,0.28160992,45902.0,45892.0,0.09127205]
[1641241953384,0.04833223,45904.0,45895.0,0.26094544]
[1641241953385,0.00127472,45901.0,45895.0,0.26094544]
[1641241953981,0.06260028,45904.0,45899.0,0.08549592]
[1641241954181,0.10893609,45909.0,45899.0,0.08549592]
[1641241954380,0.24060861,45908.0,45899.0,0.08549592]
[1641241954580,0.10893609,45909.0,45899.0,0.08549592]
[1641241954780,0.29756302,45908.0,45899.0,0.08549592]
[1641241955382,0.054469,45906.0,45899.0,0.08549592]
[1641241955581,0.054469,45906.0,45895.0,0.26094544]
[1641241955582,0.054465,45904.0,45895.0,0.26094544]
[1641241955783,0.10893334,45904.0,45895.0,0.26094544]
[1641241956025,0.10894347,45905.0,45895.0,0.26094544]
[1641241956227,0.10894347,45905.0,45888.0,0.29465744]
[1641241956228,0.2474882,45900.0,45888.0,0.29465744]
[1641241956426,0.054477,45898.0,45888.0,0.054474]
[1641241956625,0.054477,45898.0,45887.0,0.00121257]
[1641241956626,0.2474882,45900.0,45886.0,0.08121063]
[1641241956826,0.00123681,45897.0,45885.0,0.00033]
[1641241957027,0.11018102,45892.0,45885.0,0.00033]
[1641241957331,0.26691912,45889.0,45885.0,0.00033]
[1641241957531,0.108986,45888.0,45885.0,0.00033]
[1641241957725,0.217976,45888.0,45885.0,0.00033]
[1641241958025,0.517976,45888.0,45882.0,0.00044]
[1641241958228,0.054496,45885.0,45882.0,0.00044]
[1641241958428,0.00123844,45884.0,45882.0,0.00044]
[1641241958826,0.00128971,45884.0,45882.0,0.00044]
[1641241960588,0.054497,45886.0,45882.0,0.00044]
[1641241960888,0.054497,45886.0,45872.0,0.30458161]
[1641241960889,0.26938516,45882.0,45872.0,0.30458161]
[1641241961087,0.05570615,45886.0,45883.0,0.00013987]
[1641241962691,0.108976,45901.0,45883.0,0.00013987]
[1641241962692,0.20286124,45899.0,45883.0,0.00013987]
[1641241962888,0.0557275,45896.0,45890.0,0.09305043]
[1641241963087,0.054482,45895.0,45890.0,0.09305043]
[1641241963288,0.37406402,45895.0,45883.0,0.10013987]
[1641241963532,0.26128461,45894.0,45883.0,0.10013987]
[1641241963730,0.054484,45889.0,45883.0,0.10013987]
[1641241964132,0.054484,45889.0,45883.0,0.4274224]
[1641241964331,0.054484,45889.0,45888.0,0.08051184]
[1641241964936,0.00124737,45896.0,45888.0,0.08051184]
[1641241965132,1.214024,45912.0,45885.0,0.32831654]
[1641241965133,0.25936592,45903.0,45889.0,0.08252247]
[1641241965333,0.25936592,45903.0,45898.0,0.09759641]
[1641241965334,0.29832248,45902.0,45898.0,0.09759641]
[1641241965533,0.40726648,45902.0,45898.0,0.09759641]
[1641241966330,0.40726648,45902.0,45890.0,0.2755509]
[1641241966531,0.054474,45896.0,45887.0,0.00125663]
[1641241966932,0.054474,45896.0,45889.0,0.054472]
[1641241967392,0.054474,45896.0,45890.0,0.09243124]
[1641241968192,0.054474,45896.0,45891.0,0.73706869]
[1641241969193,0.054474,45896.0,45893.0,0.73706869]
[1641241969894,0.054474,45896.0,45894.0,0.73706869]
[1641241970498,0.054474,45896.0,45893.0,0.73706869]
[1641241971534,0.054474,45896.0,45890.0,0.5026305]
[1641241971535,0.054474,45896.0,45894.0,0.73719949]
[1641241971736,0.054469,45899.0,45894.0,0.73719949]
[1641241971934,0.054469,45899.0,45898.0,0.08961049]
[1641241972634,0.30740406,45904.0,45898.0,0.08961049]
[1641241972635,0.00121591,45904.0,45898.0,0.08961049]
[1641241972834,0.79975527,45915.0,45902.0,0.00123706]
[1641241972835,0.56636458,45911.0,45902.0,0.00123706]
[1641241973038,0.56636458,45911.0,45910.0,0.08585083]
[1641241973236,0.56636458,45912.0,45910.0,0.08585083]
[1641241973836,0.56636458,45912.0,45910.0,0.3527087]
[1641241974036,0.0080973,45918.0,45910.0,0.3527087]
[1641241974235,0.001,45919.0,45910.0,0.3527087]
[1641241974672,0.054448,45917.0,45910.0,0.3527087]
[1641241974873,0.054448,45917.0,45910.0,0.08585083]
[1641241975477,0.001,45919.0,45917.0,0.08935306]
[1641241976077,0.055449,45919.0,45917.0,0.08935306]
[1641241976877,0.29400154,45919.0,45917.0,0.08935306]
[1641241977076,0.29400154,45919.0,45913.0,0.00129239]
[1641241977277,0.29400154,45919.0,45906.0,0.108899]
[1641241977278,0.05445,45917.0,45906.0,0.108899]
[1641241977578,0.23955254,45919.0,45906.0,0.108899]
[1641241978181,0.108903,45918.0,45913.0,0.09798985]
[1641241978439,0.054451,45917.0,45913.0,0.09798985]
[1641241978637,2.5,45915.0,45913.0,0.09798985]
[1641241978935,2.5,45915.0,45911.0,0.00122716]
[1641241979134,2.5,45915.0,45907.0,0.3242322]
[1641241979334,2.5,45915.0,45906.0,0.108899]
[1641241979335,2.79107497,45915.0,45906.0,0.108899]
[1641241979535,0.054452,45912.0,45909.0,0.054452]
[1641241980538,0.108907,45912.0,45906.0,0.108899]
[1641241980739,0.27014424,45907.0,45902.0,0.108909]
[1641241981136,0.27014424,45907.0,45894.0,0.0001308]
[1641241981338,0.27014424,45907.0,45900.0,0.08259375]
[1641241981538,0.5703846,45907.0,45900.0,0.08259375]
[1641241981939,0.054463,45903.0,45900.0,0.08259375]
[1641241982388,0.054463,45903.0,45901.0,0.00012304]
[1641241982989,0.108929,45903.0,45901.0,0.00012304]
[1641241983293,0.05446874,45902.0,45901.0,0.00012304]
[1641241986638,0.00446874,45902.0,45901.0,0.00012304]
[1641241987039,0.108929,45903.0,45901.0,0.00012304]
[1641241988238,0.16339702,45903.0,45901.0,0.00012304]
[1641241989238,0.16339702,45903.0,45898.0,0.68422843]
[1641241989685,0.054466,45901.0,45898.0,0.68422843]
[1641241989885,0.054466,45901.0,45900.0,0.07944689]
[1641241990085,0.054463,45906.0,45900.0,0.07944689]
[1641241990389,0.054463,45906.0,45894.0,0.2921536]
[1641241990585,0.05387283,45906.0,45894.0,0.3921536]
[1641241990786,0.05387283,45906.0,45894.0,0.2921536]
[1641241991387,0.48894047,45908.0,45899.0,0.054463]
[1641241991388,0.054462,45903.0,45899.0,0.054463]
[1641241992788,0.108927,45903.0,45899.0,0.054463]
[1641241993188,0.108927,45903.0,45900.0,0.00011401]
[1641241993843,0.00129316,45901.0,45900.0,0.00011401]
[1641241994138,1.43199316,45901.0,45900.0,0.00011401]
[1641241994340,1.43199316,45901.0,45887.0,0.00806828]
[1641241994341,1.92519816,45901.0,45887.0,0.00806828]
[1641241994544,0.00121804,45888.0,45887.0,0.00806828]
[1641241994740,1.03237804,45888.0,45887.0,0.00806828]
[1641241994941,1.03237804,45888.0,45883.0,0.1]
[1641241994942,1.25,45887.0,45883.0,0.1]
[1641241995142,0.880957,45886.0,45883.0,0.1]
[1641241995340,0.00128277,45884.0,45883.0,0.1]
[1641241995740,0.35428777,45884.0,45883.0,0.1]
[1641241996139,0.00128277,45884.0,45883.0,0.0001]
[1641241996345,0.353005,45883.0,45870.0,0.00011]
[1641241996543,0.2612387,45884.0,45870.0,0.00011]
[1641241996740,0.2612387,45884.0,45870.0,0.24078853]
[1641241996942,0.10899148,45879.0,45871.0,0.054498]
[1641241997191,0.108991,45880.0,45871.0,0.054498]
[1641241997192,0.108321,45876.0,45871.0,0.054498]
[1641241997394,0.108321,45876.0,45870.0,0.00011]
[1641241997994,0.10899773,45875.0,45870.0,0.00011]
[1641241998293,0.054501,45874.0,45870.0,0.00011]
[1641241998492,0.109002,45873.0,45870.0,0.00011]
[1641241998693,0.054501,45874.0,45870.0,0.00011]
[1641241999098,0.109001,45873.0,45870.0,0.00011]
[1641242001446,0.109001,45873.0,45872.0,0.73877981]
[1641242002039,0.109001,45873.0,45871.0,0.3188427]
[1641242002237,0.109001,45873.0,45870.0,0.00011]
[1641242003443,0.0545,45873.0,45871.0,0.054497]
[1641242003643,0.00121415,45885.0,45871.0,0.05462612]
[1641242003848,0.00121415,45885.0,45875.0,0.09583737]
[1641242004442,0.31801381,45884.0,45875.0,0.09583737]
[1641242004678,0.054494,45878.0,45875.0,0.09583737]
[1641242005682,0.163485,45877.0,45875.0,0.09583737]
[1641242005884,0.41797746,45877.0,45871.0,0.00012912]
[1641242006083,0.054501,45875.0,45871.0,0.00012912]
[1641242006283,0.05450016,45874.0,45871.0,0.00012912]
[1641242006882,0.109003,45874.0,45872.0,0.07921833]
[1641242007883,0.109002,45875.0,45872.0,0.07921833]
[1641242007884,0.054501,45875.0,45872.0,0.07921833]
[1641242008084,0.054491,45877.0,45873.0,0.39332829]
[1641242008736,0.054491,45877.0,45873.0,0.66413054]
[1641242009344,0.054491,45877.0,45873.0,0.71862454]
[1641242009540,0.054491,45877.0,45873.0,0.44782229]
[1641242010435,0.054491,45877.0,45873.0,0.054494]
[1641242010638,0.054496,45876.0,45872.0,0.07921833]
[1641242011037,0.054497,45875.0,45872.0,0.07921833]
[1641242011437,0.054497,45875.0,45872.0,0.13371433]
[1641242011842,0.28131686,45884.0,45872.0,0.18371433]
[1641242012040,0.054486,45882.0,45872.0,0.1842414]
[1641242012297,0.00601215,45894.0,45890.0,0.08453774]
[1641242012499,0.00121215,45894.0,45890.0,0.08453774]
[1641242012696,0.25525934,45893.0,45884.0,0.23975194]
[1641242012896,0.5636821,45893.0,45882.0,0.32705596]
[1641242013097,0.108964,45889.0,45882.0,0.32705596]
[1641242013295,0.054482,45889.0,45882.0,0.32705596]
[1641242013995,0.108964,45892.0,45882.0,0.32705596]
[1641242013996,0.02241,45892.0,45882.0,0.32705596]
[1641242014298,0.02241,45892.0,45885.0,0.054481]
[1641242014499,0.108963,45889.0,45885.0,0.054481]
[1641242014896,0.108963,45889.0,45885.0,0.15426014]
[1641242015106,0.054481,45888.0,45885.0,0.15426014]
[1641242015699,0.054481,45888.0,45885.0,0.09977914]
[1641242015966,0.054482,45887.0,45885.0,0.09977914]
[1641242016158,0.039482,45887.0,45882.0,0.00011617]
[1641242016359,0.054486,45885.0,45882.0,0.00011617]
[1641242017161,0.054486,45885.0,45884.0,0.08139787]
[1641242017360,0.054486,45885.0,45882.0,0.00011617]
[1641242017561,0.108974,45885.0,45882.0,0.00011617]
[1641242018764,0.05448903,45884.0,45882.0,0.00011617]
[1641242019164,0.108974,45885.0,45882.0,0.00011617]
[1641242019362,0.02205074,45885.0,45882.0,0.00011617]
[1641242020182,0.02205074,45885.0,45882.0,0.26613368]
[1641242020585,0.13102596,45885.0,45882.0,0.73877908]
[1641242021284,0.07653674,45885.0,45882.0,0.73877908]
[1641242021883,0.07653674,45885.0,45882.0,0.00011617]
[1641242022289,0.08551174,45886.0,45883.0,0.40665981]
[1641242022483,0.08551174,45886.0,45882.0,1.0586939]
[1641242022884,0.10897516,45885.0,45882.0,0.73877908]
[1641242023287,0.10897516,45885.0,45884.0,0.73866291]
[1641242023543,0.054486,45885.0,45884.0,0.73866291]
[1641242023945,0.054486,45885.0,45882.0,0.73877908]
[1641242024245,0.05449222,45884.0,45882.0,0.73877908]
[1641242024443,0.108979,45885.0,45882.0,1.156621]
[1641242025047,0.054493,45885.0,45882.0,1.156621]
[1641242025646,0.054493,45885.0,45884.0,0.73866291]
[1641242026249,0.054493,45885.0,45882.0,0.41795809]
[1641242027283,0.108979,45885.0,45882.0,0.00011617]
[1641242028485,0.108979,45885.0,45883.0,0.48512493]
[1641242028686,0.0049,45897.0,45884.0,0.2861622]
[1641242028886,0.0049,45897.0,45884.0,0.28600326]
[1641242029087,0.054474,45893.0,45884.0,0.28600326]
[1641242029286,0.05435788,45893.0,45889.0,0.7385697]
[1641242029489,2.5,45900.0,45891.0,0.07624023]
[1641242029686,2.5,45900.0,45894.0,0.66283174]
[1641242029886,2.5,45900.0,45894.0,0.70303174]
[1641242030094,2.5,45900.0,45899.0,0.36886204]
[1641242030288,2.5,45900.0,45899.0,0.44988471]
[1641242031040,2.5,45900.0,45899.0,0.5513086]
[1641242031239,2.5,45900.0,45899.0,1.05580979]
[1641242031442,1.4998,45900.0,45899.0,1.05580979]
[1641242031640,1.4998,45900.0,45899.0,1.47551761]
[1641242031641,0.5392,45900.0,45899.0,1.47551761]
[1641242031838,0.103638,45900.0,45899.0,2.05551761]
[1641242032240,0.003638,45900.0,45899.0,3.21151761]
[1641242032541,5.0,45915.0,45899.0,3.21151761]
[1641242032542,5.0,45915.0,45914.0,0.13448196]
[1641242034241,5.0,45915.0,45910.0,0.11019006]
[1641242034441,5.0,45915.0,45912.0,0.05445]
[1641242034698,0.054451,45914.0,45912.0,0.05445]
[1641242035000,0.054451,45914.0,45904.0,0.00125699]
[1641242035198,0.054456,45911.0,45904.0,0.09686823]
[1641242035402,0.05446191,45909.0,45904.0,0.09686823]
[1641242035697,0.10892391,45909.0,45904.0,0.09686823]
[1641242035898,0.40520508,45909.0,45905.0,9.89e-05]
[1641242036099,0.10892391,45909.0,45905.0,9.89e-05]
[1641242036299,0.054462,45909.0,45907.0,0.73827194]
[1641242036999,0.054462,45909.0,45905.0,9.89e-05]
[1641242037201,0.054462,45909.0,45906.0,0.24211711]
[1641242037800,0.054462,45909.0,45906.0,0.29657411]
[1641242038448,0.054462,45909.0,45906.0,0.054457]
[1641242039042,0.054454,45911.0,45906.0,0.054457]
[1641242039344,0.217823,45914.0,45906.0,0.054457]
[1641242039743,0.054455,45912.0,45910.0,0.73823494]
[1641242040146,0.054455,45912.0,45911.0,0.0762681]
[1641242040345,5.0,45915.0,45911.0,0.81450304]
[1641242040547,4.995,45915.0,45911.0,0.81450304]
[1641242040945,4.995,45915.0,45914.0,0.73943858]
[1641242041144,4.995,45915.0,45914.0,1.05398231]
[1641242041347,4.995,45915.0,45914.0,1.39296968]
[1641242041548,4.995,45915.0,45914.0,0.70473474]
[1641242041747,4.995,45915.0,45913.0,0.054446]
[1641242046649,4.995,45915.0,45914.0,9.243e-05]
[1641242047149,4.995,45915.0,45914.0,0.30816978]
[1641242047351,4.995,45915.0,45914.0,1.88529966]
[1641242047552,4.995,45915.0,45914.0,0.77929966]
[1641242047749,4.985,45915.0,45914.0,0.54960766]
[1641242047951,4.985,45915.0,45914.0,1.70560766]
[1641242048754,4.985,45915.0,45914.0,2.13859059]
[1641242049155,4.549587,45915.0,45914.0,2.13859059]
[1641242049357,4.549587,45915.0,45914.0,0.98259059]
[1641242049800,4.549587,45915.0,45914.0,1.28323354]
[1641242049999,4.114172,45915.0,45914.0,2.43923354]
[1641242050202,4.89229851,45915.0,45914.0,3.54734597]
[1641242050605,4.45689651,45915.0,45914.0,3.54734597]
[1641242050802,4.45689651,45915.0,45914.0,3.64734597]
[1641242051005,4.02153451,45915.0,45914.0,3.54734597]
[1641242051403,4.02153451,45915.0,45914.0,2.13859059]
[1641242051607,3.58616551,45915.0,45914.0,2.82859059]
[1641242051809,3.58616551,45915.0,45914.0,3.02859059]
[1641242052305,3.15079151,45915.0,45914.0,3.02859059]
[1641242052706,2.71542051,45915.0,45914.0,3.02859059]
[1641242053109,2.28005451,45915.0,45914.0,3.02859059]
[1641242053443,1.82087451,45915.0,45914.0,3.06633059]
[1641242053640,0.75676551,45915.0,45914.0,3.06633059]
[1641242053839,0.73870343,45915.0,45914.0,3.06633059]
[1641242054039,0.35782161,45942.0,45914.0,3.06633059]
[1641242054040,0.94335286,45946.0,45915.0,1.3]
[1641242054341,0.0001,45950.0,45914.0,3.43672418]
[1641242054342,0.0001,45950.0,45943.0,0.08782088]
[1641242054541,0.0001,45950.0,45943.0,0.13782088]
[1641242054739,0.001,45949.0,45943.0,0.12802088]
[1641242055138,0.001,45949.0,45945.0,0.054404]
[1641242055340,0.28990894,45948.0,45945.0,0.054404]
[1641242055939,0.34431894,45948.0,45940.0,0.15124485]
[1641242056142,0.34431894,45948.0,45940.0,0.00124485]
[1641242056440,0.34431894,45948.0,45942.0,0.054412]
[1641242056441,0.05441,45948.0,45942.0,0.054412]
[1641242057288,0.05441,45948.0,45943.0,6.571e-05]
[1641242057889,0.05264085,45948.0,45943.0,6.571e-05]
[1641242062247,0.00128469,45947.0,45943.0,6.571e-05]
[1641242062447,0.393205,45946.0,45943.0,6.571e-05]
[1641242062747,0.00120951,45944.0,45943.0,6.571e-05]
[1641242062944,2.02441451,45944.0,45943.0,6.571e-05]
[1641242063145,2.28543912,45944.0,45943.0,6.571e-05]
[1641242065483,0.65543912,45944.0,45927.0,0.05443]
[1641242065684,0.054429,45934.0,45927.0,0.05443]
[1641242065884,0.16328549,45937.0,45927.0,0.05443]
[1641242066488,0.16328549,45937.0,45929.0,0.08736402]
[1641242066684,0.00127075,45938.0,45930.0,0.054427]
[1641242066887,0.054425,45936.0,45930.0,0.054427]
[1641242067687,0.26841551,45937.0,45930.0,0.054427]
[1641242068088,0.26341551,45937.0,45931.0,7.008e-05]
[1641242068562,0.00127075,45938.0,45933.0,0.054424]
[1641242068563,0.054423,45938.0,45933.0,0.054424]
[1641242068762,0.054423,45938.0,45936.0,0.07289744]